bitfinex-derivatives/quotes_ETHF0:USTF0_20260315
["timestamp","ask_amount","ask_price","bid_price","bid_amount"]
[1773550731559,0.83645799,2103.0,2102.4,0.86064027]
[1773550732259,0.81264239,2103.1,2102.5,0.86064027]
[1773550738758,0.8161154,2103.2,2102.5,0.86064027]
[1773550741955,3.8736972,2103.7,2102.9,0.07126857]
[1773550742159,0.76653143,2103.9,2103.2,0.11041662]
[1773550742560,0.76653143,2103.9,2103.4,0.11174686]
[1773550743055,0.77117151,2103.9,2103.4,0.1163334]
[1773550748262,0.77117151,2103.9,2103.4,0.00458654]
[1773550750570,0.77117151,2103.9,2103.4,0.67202355]
[1773550750765,0.77117151,2103.9,2103.4,0.00458654]
[1773550751067,0.77117151,2103.9,2103.0,25.469]
[1773550751663,0.81264239,2103.7,2103.0,25.469]
[1773550751864,0.81264239,2103.7,2103.0,66.27393168]
[1773550753358,0.81264239,2103.7,2103.0,67.13457195]
[1773550753766,0.81264239,2103.7,2103.1,0.86064027]
[1773550756164,0.81264239,2103.7,2103.2,0.86064027]
[1773550770286,0.81264239,2103.7,2103.1,7.76334724]
[1773550770786,0.81264239,2103.7,2103.1,8.80860693]
[1773550771175,0.81264239,2103.7,2103.1,7.00032047]
[1773550771486,0.81264239,2103.7,2103.1,31.83806078]
[1773550773081,0.81264239,2103.7,2103.1,32.88332047]
[1773550773784,0.81264239,2103.7,2103.2,1.04525969]
[1773550774575,0.81264239,2103.7,2103.1,31.83806078]
[1773550774780,0.81264239,2103.7,2103.1,25.883]
[1773550774980,0.81264239,2103.7,2103.1,31.83806078]
[1773550776687,0.81264239,2103.7,2103.1,32.88332047]
[1773550778581,0.81264239,2103.7,2103.2,1.04525969]
[1773550780392,1.10338536,2103.9,2103.2,1.04525969]
[1773550781989,1.10338536,2103.9,2103.3,1.04271369]
[1773550785994,1.10338536,2103.9,2103.4,1.02822459]
[1773550786587,1.10338536,2103.9,2103.6,1.02379986]
[1773550786792,0.44100921,2103.9,2103.6,1.02379986]
[1773550787892,0.44649979,2103.9,2103.6,1.02379986]
[1773550788491,0.44649979,2103.9,2103.3,7.76334724]
[1773550788796,0.44649979,2103.9,2103.2,7.00032047]
[1773550790697,0.44649979,2103.9,2103.3,1.03453666]
[1773550791096,0.44649979,2103.9,2103.2,6.98959744]
[1773550794199,0.44649979,2103.9,2103.3,1.08222362]
[1773550795397,0.44649979,2103.9,2103.4,1.08222362]
[1773550795796,0.00549058,2103.9,2103.4,1.08222362]
[1773550796195,0.99511184,2103.9,2103.4,1.08222362]
[1773550796392,5.95005082,2104.6,2103.9,1.08222362]
[1773550796593,0.98962126,2104.5,2104.0,1.08222362]
[1773550796800,0.98962126,2104.5,2104.1,1.08222362]
[1773550796995,0.98962126,2104.5,2104.0,1.08222362]
[1773550797197,0.98962126,2104.5,2104.2,1.08222362]
[1773550797400,0.99309622,2104.5,2104.2,1.08222362]
[1773550797901,0.00347496,2104.5,2104.2,1.08222362]
[1773550798297,0.99309622,2104.5,2104.2,1.08222362]
[1773550798600,0.98962126,2104.9,2104.0,1.08222362]
[1773550798802,0.98962126,2104.9,2104.1,1.08222362]
[1773550799501,0.99513721,2104.9,2104.1,1.08222362]
[1773550800100,0.99513721,2104.9,2104.3,1.08222362]
[1773550800797,0.99513721,2104.9,2104.2,1.08222362]
[1773550801093,0.99513721,2104.9,2103.2,2.04454954]
[1773550801094,0.98962126,2104.7,2103.9,1.08222362]
[1773550801301,0.98962126,2104.7,2104.0,1.08222362]
[1773550801495,0.98962126,2104.8,2104.2,1.08222362]
[1773550803304,0.60930126,2104.8,2104.2,1.08222362]
[1773550803506,0.98962126,2104.6,2104.0,1.08222362]
[1773550804002,0.98962126,2104.4,2103.8,1.08222362]
[1773550804399,0.98962126,2104.4,2103.6,5.95506078]
[1773550804400,0.98962126,2104.4,2103.6,1.08222362]
[1773550804600,0.98962126,2104.2,2103.5,41.88222362]
[1773550804799,0.98962126,2104.2,2103.5,1.08222362]
[1773550816913,0.98962126,2104.2,2103.3,5.95506078]
[1773550817209,0.98962126,2104.2,2103.1,1.08222362]
[1773550822010,0.98962126,2104.2,2103.2,1.05844699]
[1773550825414,0.98962126,2104.2,2103.1,1.05844699]
[1773550833122,1.05524095,2104.1,2103.1,1.05844699]
[1773550838222,1.05524095,2104.7,2103.6,1.05844699]
[1773550838422,1.05524095,2104.7,2103.9,1.05844699]
[1773550839022,1.05524095,2104.5,2103.8,1.05844699]
[1773550839929,1.05524095,2104.5,2103.6,1.05844699]
[1773550841031,1.05524095,2104.5,2103.7,1.05844699]
[1773550841525,1.05524095,2104.8,2104.0,1.05844699]
[1773550842331,1.0607569,2104.9,2104.0,1.05844699]
[1773550843027,1.0607569,2104.9,2104.1,1.05844699]
[1773550843229,0.00551595,2104.9,2104.1,1.05844699]
[1773550847534,1.05524095,2104.8,2104.1,1.05844699]
[1773550849937,1.05524095,2104.7,2103.9,1.05844699]
[1773550850645,1.05524095,2104.7,2103.7,1.02809872]
[1773550852542,1.05461001,2104.6,2103.7,1.02809872]
[1773550861051,1.05461001,2104.4,2103.7,1.02809872]
[1773550861753,1.05461001,2104.4,2103.7,0.96369872]
[1773550875564,2.86209737,2104.2,2103.7,0.96369872]
[1773550876563,1.05461001,2104.1,2103.7,0.96369872]
[1773550880966,1.05461001,2104.1,2103.5,6.94021642]
[1773550881164,1.05461001,2104.1,2103.6,0.98515564]
[1773550889072,8.781,2104.3,2103.6,0.98515564]
[1773550889271,1.00724229,2104.2,2103.6,0.98515564]
[1773550891177,1.00724229,2104.0,2103.6,0.98515564]
[1773550891880,8.781,2104.3,2103.3,6.91577032]
[1773550891881,1.00724229,2103.6,2103.3,6.91577032]
[1773550892178,2.81472965,2103.7,2103.4,0.96070954]
[1773550892378,1.00724229,2103.6,2103.3,0.15004212]
[1773550893076,2.81472965,2103.7,2103.3,0.15004212]
[1773550893379,2.81472965,2103.7,2103.3,0.14664212]
[1773550898585,1.00724229,2103.7,2103.3,0.14664212]
[1773550899283,1.00724229,2103.6,2103.2,5.95506078]
[1773550899588,1.00724229,2103.4,2103.1,0.33289078]
[1773550899787,1.01340812,2103.4,2103.1,0.33289078]
[1773550899982,0.00616583,2103.4,2103.1,0.33289078]
[1773550902688,1.01340812,2103.4,2103.0,5.95999246]
[1773550902990,1.01340812,2103.4,2103.0,0.32889803]
[1773550903189,1.01340812,2103.4,2103.0,0.00493168]
[1773550903487,1.01340812,2103.4,2103.0,0.32670551]
[1773550908891,1.01340812,2103.4,2103.0,0.00493168]
[1773550910388,1.05925432,2103.2,2102.6,5.95506078]
[1773550910788,1.06542015,2103.4,2102.6,5.95506078]
[1773550911594,0.00616583,2103.4,2103.0,0.01727464]
[1773550919702,1.05739507,2103.6,2103.0,0.01727464]
[1773550920203,3.98662135,2104.0,2103.0,0.01727464]
[1773550920403,1.05748492,2103.9,2103.2,0.00711771]
[1773550920703,1.06193159,2103.9,2103.2,0.00711771]
[1773550921202,2.86941895,2103.9,2103.2,0.00711771]
[1773550921405,1.05840058,2103.8,2103.2,0.00711771]
[1773550927199,1.06671801,2103.9,2103.2,5.95506078]
[1773550928004,1.06671801,2103.9,2103.3,40.8]
[1773550928409,1.06671801,2103.9,2103.3,46.75506078]
[1773550929411,0.00444667,2103.9,2103.3,46.75506078]
[1773550930609,0.00444667,2103.9,2103.3,48.56254814]
[1773550934921,1.07043339,2104.3,2103.5,1.80748736]
[1773550935119,1.07043339,2104.3,2103.5,7.76254814]
[1773550935916,1.07395649,2104.3,2103.5,7.76254814]
[1773550936219,1.07395649,2104.3,2103.5,1.80748736]
[1773550937713,1.07395649,2104.3,2103.4,5.95506078]
[1773550944023,1.07395649,2104.3,2103.5,5.95506078]
[1773550948229,1.07395649,2104.3,2103.6,5.95506078]
[1773550956239,0.0035231,2104.3,2103.7,5.95506078]
[1773550958545,1.07574297,2104.3,2103.7,5.95506078]
[1773550963239,1.07574297,2104.3,2103.8,5.95506078]
[1773550963942,1.07574297,2104.3,2103.7,5.95506078]
[1773550964144,1.07574297,2104.3,2103.8,5.95506078]
[1773550965547,1.07574297,2104.3,2103.7,5.95506078]
[1773550967251,1.07574297,2104.3,2103.8,5.95506078]
[1773550968051,1.07574297,2104.3,2103.7,5.95506078]
[1773550968250,1.07574297,2104.3,2103.8,5.95506078]
[1773550984572,1.07574297,2104.3,2103.9,0.00093328]
[1773550985165,1.07574297,2104.3,2103.8,5.95506078]
[1773550985166,1.07574297,2104.3,2103.8,5.13167883]
[1773550985371,1.03319574,2104.2,2103.4,0.4226943]
[1773550986076,1.03319574,2104.1,2103.4,0.4226943]
[1773550996782,1.03319574,2104.1,2103.2,40.8]
[1773550996983,1.03319574,2104.1,2103.3,0.77193716]
[1773550997583,1.03711737,2103.8,2103.3,0.77193716]
[1773551003784,1.80804341,2103.4,2102.8,1.29817203]
[1773551003982,1.37874381,2103.5,2102.8,1.29817203]
[1773551004186,1.37874381,2103.7,2102.9,1.29486584]
[1773551005889,1.37874381,2103.6,2102.9,1.29486584]
[1773551017899,1.37874381,2104.0,2103.2,1.16799284]
[1773551019894,1.37874381,2103.9,2103.2,1.16799284]
[1773551020498,1.37874381,2104.2,2103.6,1.15009731]
[1773551021897,1.37874381,2104.2,2103.2,9.26098677]
[1773551022093,1.81156651,2104.3,2103.1,7.45294336]
[1773551022094,1.37874381,2104.0,2103.1,7.45294336]
[1773551022299,1.37874381,2104.0,2103.2,1.15072653]
[1773551024202,1.37874381,2104.0,2103.3,1.80804341]
[1773551024403,1.37874381,2104.2,2103.4,1.14112687]
[1773551027304,1.38226691,2104.3,2103.8,1.12117221]
[1773551027701,1.37874381,2104.0,2103.4,1.11594214]
[1773551043719,1.30031591,2104.2,2103.4,1.11594214]
[1773551046215,1.30031591,2104.1,2103.4,1.11594214]
[1773551052218,1.30031591,2104.0,2103.4,1.11594214]
[1773551052421,1.30031591,2103.9,2103.3,7.45294336]
[1773551053113,1.30031591,2103.9,2103.3,8.46262335]
[1773551053322,1.30031591,2103.9,2103.3,1.00967999]
[1773551054122,1.30031591,2103.9,2103.2,8.45693714]
[1773551054918,1.30031591,2103.9,2103.3,0.99821688]
[1773551056229,1.30031591,2103.7,2103.1,8.447905]
[1773551056415,1.30031591,2103.7,2103.1,0.99496164]
[1773551072431,1.21924081,2104.1,2103.1,0.99496164]
[1773551072635,1.21924081,2104.0,2103.1,0.99496164]
[1773551072836,1.21924081,2103.9,2103.1,0.99496164]
[1773551073537,1.21924081,2103.9,2103.2,0.85884548]
[1773551078138,1.21924081,2103.9,2103.3,0.82164246]
[1773551090952,1.21924081,2103.9,2103.2,6.97063373]
[1773551091151,1.13665211,2103.7,2102.6,1.10774166]
[1773551091354,1.13665211,2103.6,2102.6,1.10774166]
[1773551091549,1.13665211,2103.6,2102.6,0.00507466]
[1773551093249,6.87713254,2103.6,2102.6,0.00507466]
[1773551093456,1.18359247,2103.4,2102.6,0.00507466]
[1773551096651,1.18359247,2103.4,2102.6,1.14174347]
[1773551098762,1.18359247,2103.4,2102.1,1.13666881]
[1773551099255,1.18359247,2103.4,2102.3,1.13666881]
[1773551099757,1.18359247,2103.4,2102.3,1.14080146]
[1773551100851,1.18359247,2103.2,2102.3,0.00413265]
[1773551101159,1.18359247,2103.1,2102.3,0.00413265]
[1773551109362,1.18359247,2102.9,2101.9,1.13666881]
[1773551109968,1.18359247,2102.9,2101.9,41.93666881]
[1773551110467,1.18359247,2102.9,2101.9,41.94086221]
[1773551110966,1.18359247,2102.9,2102.0,1.13666881]
[1773551119168,1.18359247,2102.8,2102.0,1.13666881]
[1773551119472,1.18941,2102.8,2102.0,1.13666881]
[1773551119660,1.18941,2102.8,2101.9,40.8041934]
[1773551119661,1.18359247,2102.4,2101.9,40.8041934]
[1773551119864,1.18359247,2102.4,2101.9,0.0041934]
[1773551121571,1.18359247,2102.4,2101.9,1.14086221]
[1773551125172,1.18359247,2102.4,2101.9,0.0041934]
[1773551126070,1.18359247,2102.4,2101.9,1.1233708]
[1773551147503,6.88148067,2102.6,2102.0,1.1191774]
[1773551147801,6.88148067,2102.5,2102.0,1.1191774]
[1773551148101,1.12042587,2102.5,2102.0,1.1191774]
[1773551156897,5.76131219,2102.7,2102.0,1.1191774]
[1773551157102,1.0347796,2103.0,2102.6,2.46977945]
[1773551157298,1.0347796,2103.0,2102.6,0.65973843]
[1773551157498,1.0347796,2103.3,2102.7,0.65658608]
[1773551157800,1.0347796,2103.2,2102.5,0.65658608]
[1773551157999,1.03989192,2103.2,2102.5,0.65658608]
[1773551161304,1.03989192,2103.2,2102.3,0.69376497]
[1773551166203,1.03989192,2103.2,2102.6,0.65464655]
[1773551181810,1.03989192,2103.2,2102.4,0.59565872]
[1773551185216,1.03989192,2103.2,2102.5,0.59834053]
[1773551190323,1.03989192,2103.2,2102.6,0.59759661]
[1773551193226,0.00511232,2103.2,2102.6,0.59759661]
[1773551193625,1.07405399,2103.2,2102.6,0.59759661]
[1773551199328,1.06894167,2103.4,2102.6,0.59759661]
[1773551199623,1.06894167,2103.4,2102.7,0.59719766]
[1773551199928,1.06894167,2103.3,2102.7,0.59719766]
[1773551200430,1.07460507,2103.3,2102.7,0.59719766]
[1773551200930,1.07460507,2103.3,2102.5,8.07714759]
[1773551201129,1.07460507,2103.3,2102.6,0.59665599]
[1773551202132,1.07460507,2103.3,2102.7,0.59589679]
[1773551207132,1.07460507,2103.3,2102.8,0.58749957]
[1773551210934,1.07460507,2103.3,2102.7,0.58544021]
[1773551211337,1.07460507,2103.3,2102.6,7.48050006]
[1773551211544,1.07460507,2103.3,2102.6,8.06575756]
[1773551218646,1.07460507,2103.3,2102.7,0.57870372]
[1773551221447,1.06757956,2103.5,2102.8,0.57588048]
[1773551222448,1.07345082,2103.5,2102.8,0.57588048]
[1773551230558,1.07345082,2103.5,2102.6,7.05384842]
[1773551230759,1.06757956,2103.2,2102.0,10.97681109]
[1773551230959,1.06757956,2103.1,2102.0,1.01036423]
[1773551232358,1.06757956,2103.0,2102.0,1.01036423]
[1773551232664,1.06757956,2102.9,2102.0,1.01036423]
[1773551233963,1.06757956,2102.9,2102.0,1.25277529]
[1773551234763,1.06757956,2102.9,2102.0,1.01036423]
[1773551235865,1.06757956,2102.8,2102.0,1.01036423]
[1773551241567,1.17887802,2102.7,2102.0,1.01036423]
[1773551243464,1.17887802,2102.7,2101.9,41.97002105]
[1773551243864,1.17887802,2102.7,2102.0,1.16582765]
[1773551247569,1.17887802,2102.7,2101.9,1.17002105]
[1773551248964,1.17887802,2102.3,2101.9,0.0041934]
[1773551254872,1.17887802,2102.7,2101.9,1.17002105]
[1773551256773,1.17887802,2102.5,2101.9,1.17002105]
[1773551259075,1.17887802,2102.5,2101.9,0.0041934]
[1773551260479,1.17887802,2102.4,2101.9,0.0041934]
[1773551260979,1.17887802,2102.4,2101.9,1.14429626]
[1773551266584,1.17887802,2102.4,2101.9,0.0041934]
[1773551267479,1.17887802,2102.4,2101.9,1.09623383]
[1773551268685,1.17887802,2102.4,2102.0,1.08568598]
[1773551276386,1.07823802,2102.7,2102.1,2.84681266]
[1773551276691,1.07823802,2102.6,2102.1,2.84681266]
[1773551280794,1.07823802,2102.6,2102.2,1.01463899]
[1773551281690,6.9921268,2102.9,2102.5,2.81983397]
[1773551281895,1.07823802,2102.9,2102.6,1.00995694]
[1773551282798,1.07823802,2103.1,2102.8,1.01050711]
[1773551285591,6.98410484,2103.4,2103.0,1.03693563]
[1773551285790,1.07823802,2103.4,2103.0,1.03693563]
[1773551286692,1.07823802,2103.4,2102.8,1.03693563]
[1773551304311,1.07823802,2103.4,2102.4,1.03365002]
[1773551304517,1.03504514,2103.3,2102.4,1.03365002]
[1773551316129,6.93126403,2103.4,2102.4,1.03365002]
[1773551316323,6.93126403,2103.4,2102.3,0.24325747]
[1773551316324,1.0409164,2103.5,2102.6,1.03365002]
[1773551316931,6.94603198,2103.5,2102.6,1.03365002]
[1773551317229,1.0409164,2103.5,2102.6,1.03365002]
[1773551318130,6.94550471,2103.5,2102.6,1.03365002]
[1773551318329,1.0409164,2103.5,2102.6,1.03365002]
[1773551319130,6.94537358,2103.5,2102.6,1.03365002]
[1773551319331,1.0409164,2103.5,2102.6,1.03365002]
[1773551319727,1.0409164,2103.5,2102.4,1.80848101]
[1773551319728,0.00587126,2103.5,2102.8,1.03365002]
[1773551321135,0.00587126,2103.5,2103.0,1.03365002]
[1773551321730,1.03504514,2103.7,2103.0,1.03365002]
[1773551322635,1.04058804,2103.7,2103.0,1.03365002]
[1773551336444,1.04058804,2103.7,2102.9,41.81241617]
[1773551336745,1.04058804,2103.7,2103.0,1.01241617]
[1773551354266,0.0055429,2103.7,2103.0,1.01241617]
[1773551354662,5.90453378,2103.7,2103.0,1.01241617]
[1773551354863,0.0055429,2103.7,2103.0,1.01241617]
[1773551355262,0.0055429,2103.7,2103.0,27.62441617]
[1773551355465,0.0055429,2103.7,2103.1,1.01241617]
[1773551361768,5.88972751,2104.0,2103.1,1.01241617]
[1773551361972,5.88972751,2103.9,2103.1,1.01241617]
[1773551362166,0.99533142,2104.0,2103.1,1.01241617]
[1773551362871,0.99990088,2104.0,2103.1,1.01241617]
[1773551363574,0.99990088,2104.0,2103.2,0.97234599]
[1773551382787,0.99533142,2103.9,2103.2,0.97234599]
[1773551388094,6.88232745,2103.9,2103.2,0.97234599]
[1773551388396,0.99533142,2103.7,2103.2,0.97234599]
[1773551395097,1.04432943,2103.8,2103.2,0.97234599]
[1773551395297,6.93264002,2103.9,2103.2,0.97234599]
[1773551395498,1.04432943,2103.8,2103.2,0.97234599]
[1773551397397,5.88831059,2103.9,2103.2,0.97234599]
[1773551397598,6.93264002,2103.9,2103.2,0.97234599]
[1773551398501,1.04432943,2103.8,2103.2,0.97234599]
[1773551413222,6.93264002,2103.9,2103.2,0.97234599]
[1773551414018,1.04432943,2103.8,2103.2,0.97234599]
[1773551416127,6.93264002,2103.9,2103.3,0.97211673]
[1773551416328,1.04432943,2103.9,2103.3,0.97211673]
[1773551421232,6.93888148,2104.0,2103.3,0.97211673]
[1773551423229,5.89455205,2104.0,2103.3,0.97211673]
[1773551423432,0.98105783,2104.0,2103.3,0.97211673]
[1773551424031,0.98105783,2104.0,2103.5,1.00726688]
[1773551424232,0.00456946,2104.0,2103.5,1.01321427]
[1773551428638,6.86266182,2104.3,2103.5,1.01321427]
[1773551428837,0.97648837,2104.3,2103.5,1.01321427]
[1773551429740,0.98254907,2104.3,2103.5,1.01321427]
[1773551455652,0.98254907,2104.3,2103.5,1.25671202]
[1773551456454,0.98254907,2104.3,2103.5,1.01321427]
[1773551459547,1.80704695,2104.2,2103.3,0.98832446]
[1773551459746,1.01786391,2103.8,2103.0,0.98832446]
[1773551459945,1.01786391,2103.8,2102.9,41.78832446]
[1773551459946,5.8898485,2103.7,2102.9,41.78832446]
[1773551460148,1.01786391,2103.6,2102.9,41.78832446]
[1773551460647,1.01786391,2103.6,2102.9,41.79404201]
[1773551460842,1.01786391,2103.6,2102.9,0.99404201]
[1773551461042,5.8898485,2103.7,2102.9,0.99404201]
[1773551461043,1.01786391,2103.5,2102.9,0.99404201]
[1773551461952,1.01786391,2103.5,2102.9,0.00571755]
[1773551463243,1.01786391,2103.5,2102.9,0.99404201]
[1773551469552,1.01786391,2103.2,2101.9,0.98832446]
[1773551469950,1.01786391,2103.2,2102.1,0.98832446]
[1773551470456,1.01786391,2103.2,2102.1,0.99398028]
[1773551471056,1.01786391,2103.2,2102.2,0.98832446]
[1773551471354,1.01786391,2103.6,2102.5,0.98832446]
[1773551475457,1.01786391,2103.6,2102.7,0.98832446]
[1773551480563,1.01786391,2103.6,2102.8,0.98832446]
[1773551480763,1.01786391,2104.0,2102.8,0.98832446]
[1773551484568,1.03749204,2103.9,2102.8,0.98832446]
[1773551485670,1.03749204,2103.9,2103.1,0.94121951]
[1773551489170,1.03749204,2103.8,2103.1,0.94121951]
[1773551500283,1.03749204,2103.7,2103.1,0.94121951]
[1773551512989,1.022545,2104.0,2103.5,0.92345068]
[1773551516191,1.022545,2103.9,2103.5,0.92345068]
[1773551520895,1.022545,2104.1,2103.5,0.92345068]
[1773551522196,1.022545,2103.8,2103.1,0.92345068]
[1773551522404,1.022545,2103.6,2103.1,0.92345068]
[1773551525297,1.022545,2103.6,2102.8,0.92345068]
[1773551527898,1.8077465,2103.5,2102.8,0.92345068]
[1773551528102,1.022545,2103.4,2102.8,0.92345068]
[1773551531513,1.022545,2103.2,2102.6,41.72345068]
[1773551532012,1.022545,2103.2,2102.6,0.92345068]
[1773551532412,1.022545,2103.2,2102.3,41.72345068]
[1773551532611,1.022545,2103.2,2102.4,0.92345068]
[1773551537615,1.022545,2103.0,2102.3,0.92345068]
[1773551537820,1.022545,2103.2,2102.3,0.92345068]
[1773551538311,1.022545,2103.2,2102.5,0.92345068]
[1773551545220,0.99836731,2103.4,2102.5,0.92345068]
[1773551545417,0.99836731,2103.4,2102.7,1.00820876]
[1773551586860,0.98191736,2103.5,2102.7,1.00820876]
[1773551587065,6.86253947,2103.6,2102.7,1.00820876]
[1773551587260,0.98191736,2103.6,2102.7,1.00820876]
[1773551588364,0.98191736,2103.5,2102.7,1.00820876]
[1773551591860,0.98191736,2103.4,2102.7,1.00820876]
[1773551593263,0.98191736,2103.3,2102.7,1.00820876]
[1773551593966,0.98191736,2103.5,2102.7,1.00820876]
[1773551594359,5.88768008,2103.6,2102.7,1.00820876]
[1773551594659,0.98191736,2103.7,2102.7,1.00820876]
[1773551594860,6.86937288,2103.7,2102.7,1.00820876]
[1773551595060,0.98191736,2103.6,2102.7,1.00820876]
[1773551601168,0.98191736,2103.6,2102.7,1.25149009]
[1773551603870,0.95737901,2103.5,2102.7,1.25149009]
[1773551607576,0.95737901,2103.5,2102.8,0.93247992]
[1773551611376,0.95737901,2103.6,2103.0,0.93247992]
[1773551614574,0.95737901,2103.6,2102.7,2.05146861]
[1773551614575,0.95737901,2103.1,2102.8,0.93247992]
[1773551614875,0.95737901,2103.5,2102.9,0.93247992]
[1773551620893,0.95737901,2103.8,2103.3,0.93247992]
[1773551631490,0.91362792,2103.9,2103.3,0.93247992]
[1773551649308,0.91362792,2103.8,2103.3,0.93247992]
[1773551660815,5.89205865,2103.9,2103.3,0.93247992]
[1773551661218,0.91362792,2104.0,2103.3,0.93247992]
[1773551661517,0.91362792,2103.9,2103.3,0.93247992]
[1773551664922,5.8975031,2104.0,2103.3,0.93247992]
[1773551665117,6.75953092,2104.0,2103.3,0.93247992]
[1773551665318,5.8975031,2103.9,2103.3,0.93247992]
[1773551665611,0.86202782,2104.0,2103.3,0.93247992]
[1773551666021,0.86202782,2103.9,2103.3,0.93247992]
[1773551667121,6.75954293,2103.9,2103.3,0.93247992]
[1773551667322,0.86202782,2103.9,2103.3,0.93247992]
[1773551668522,6.75948905,2103.9,2103.3,0.93247992]
[1773551668824,0.86202782,2103.9,2103.3,0.93247992]
[1773551669924,0.86202782,2104.0,2103.3,0.93247992]
[1773551673023,6.75946524,2104.1,2103.3,0.93247992]
[1773551673228,5.89743742,2104.0,2103.3,0.93247992]
[1773551673424,0.86202782,2104.1,2103.3,0.93247992]
[1773551677927,6.75770908,2104.2,2103.3,0.93247992]
[1773551678328,5.89568126,2104.1,2103.3,0.93247992]
[1773551678537,0.86202782,2104.2,2103.3,0.93247992]
[1773551687137,0.86202782,2104.1,2103.3,0.93247992]
[1773551700248,0.86202782,2104.1,2103.4,40.8]
[1773551700448,0.86202782,2104.1,2103.5,0.91875526]
[1773551701348,0.89671124,2104.2,2103.5,0.91875526]
[1773551705754,0.89671124,2104.2,2103.2,41.71875526]
[1773551705955,0.89671124,2104.2,2103.3,0.91875526]
[1773551711264,0.89671124,2104.2,2103.5,0.91875526]
[1773551712167,0.89671124,2104.2,2103.1,0.91875526]
[1773551712467,0.89671124,2103.8,2102.7,21.08914504]
[1773551712665,0.89671124,2103.7,2102.8,41.71875526]
[1773551714062,0.89671124,2103.5,2102.8,0.91875526]
[1773551714360,0.89671124,2103.5,2102.5,0.23777]
[1773551714361,0.89671124,2103.5,2102.7,0.91875526]
[1773551714766,0.89671124,2103.4,2102.7,0.91875526]
[1773551718767,0.89671124,2103.4,2102.6,40.8]
[1773551718969,0.89671124,2103.4,2102.6,0.91875526]
[1773551719472,0.89671124,2103.4,2102.5,0.91875526]
[1773551729580,0.89671124,2103.4,2102.6,0.90442247]
[1773551729974,0.89671124,2103.4,2102.8,0.90442247]
[1773551730880,0.91000664,2103.7,2103.0,0.90442247]
[1773551733181,0.91000664,2103.7,2103.2,0.90442247]
[1773551735182,5.85665932,2104.1,2103.2,0.90442247]
[1773551735383,0.91000664,2103.8,2103.2,0.90442247]
[1773551740286,0.91000664,2104.0,2103.2,0.90442247]
[1773551741490,0.91000664,2104.0,2103.4,0.90442247]
[1773551743488,0.91000664,2104.2,2103.4,0.90442247]
[1773551747294,0.91000664,2104.1,2103.4,0.90442247]
[1773551749800,0.91000664,2103.9,2103.4,0.90442247]
[1773551750897,0.91000664,2103.9,2103.1,0.86848382]
[1773551758002,0.81937436,2103.8,2103.1,0.86848382]
[1773551770314,5.88426525,2103.9,2103.1,0.86848382]
[1773551770512,0.81937436,2103.9,2103.1,0.86848382]
[1773551771412,6.7096964,2103.9,2103.1,0.86848382]
[1773551771815,0.81937436,2103.9,2103.1,0.86848382]
[1773551773817,0.81937436,2103.9,2103.3,0.88730493]
[1773551774620,0.82543506,2104.3,2103.7,0.88730493]
[1773551774913,0.82543506,2104.3,2103.7,0.89179757]
[1773551776118,1.80848936,2104.6,2103.9,0.88730493]
[1773551776119,0.81937436,2104.6,2103.9,0.88730493]
[1773551777117,0.82340025,2104.6,2103.9,0.88730493]
[1773551779621,0.81937436,2104.5,2103.9,0.88730493]
[1773551780324,0.81937436,2104.5,2103.8,0.88730493]
[1773551781128,0.81937436,2104.3,2103.7,41.69179757]
[1773551781325,0.81937436,2104.3,2103.8,0.88730493]
[1773551782023,0.81954861,2104.5,2103.8,0.88730493]
[1773551794935,0.80186005,2104.6,2103.8,0.88730493]
[1773551802547,0.00402589,2104.6,2103.9,0.79659217]
[1773551806843,0.7690761,2105.0,2103.9,0.79659217]
[1773551807049,0.7690761,2105.0,2104.1,0.79659217]
[1773551807748,0.77478518,2105.0,2104.1,0.79659217]
[1773551812246,0.00570908,2105.0,2104.1,0.79659217]
[1773551812465,0.00570908,2105.0,2104.0,1.806445]
[1773551812466,4.34148965,2106.3,2104.9,0.74383436]
[1773551812649,0.81320883,2106.2,2105.4,0.74383436]
[1773551813051,0.81320883,2106.2,2105.6,0.74383436]
[1773551813650,0.81917268,2106.2,2105.6,0.00561652]
[1773551814249,0.81320883,2105.8,2105.6,0.00561652]
[1773551814549,0.81320883,2106.1,2105.6,0.74945088]
[1773551815151,2.89633075,2106.1,2105.6,0.74945088]
[1773551815358,0.81320883,2106.0,2105.6,0.74945088]
[1773551815557,2.89633075,2106.1,2105.6,0.74945088]
[1773551815761,0.81320883,2106.1,2105.6,0.74945088]
[1773551815957,2.89633075,2106.1,2105.6,0.74945088]
[1773551816159,0.81320883,2106.1,2105.6,0.74945088]
[1773551816559,0.81917268,2106.2,2105.6,0.74945088]
[1773551817160,2.9022946,2106.2,2105.6,0.74945088]
[1773551817461,0.81917268,2106.2,2105.6,0.74945088]
[1773551817660,0.81320883,2106.1,2105.6,0.74945088]
[1773551818062,0.00596385,2106.2,2105.6,0.74945088]
[1773551820765,0.81917268,2106.2,2105.6,0.74945088]
[1773551820967,0.81320883,2106.1,2105.6,0.74945088]
[1773551821765,0.81320883,2105.9,2105.6,0.00561652]
[1773551822258,0.81320883,2105.7,2105.5,24.48359083]
[1773551822457,0.81320883,2105.7,2105.4,40.8]
[1773551822663,0.81320883,2105.7,2105.4,41.54383436]
[1773551823365,0.81320883,2105.7,2105.4,0.00500603]
[1773551823567,0.81320883,2105.7,2105.2,25.152]
[1773551823766,2.08312192,2105.6,2105.2,25.152]
[1773551823968,0.81320883,2105.5,2105.1,0.74383436]
[1773551824169,0.81320883,2107.0,2105.3,0.74383436]
[1773551824368,0.81320883,2107.0,2105.9,0.74383436]
[1773551824568,0.81320883,2107.0,2105.9,0.74914031]
[1773551824769,0.81320883,2106.7,2105.9,0.74914031]
[1773551824964,0.81320883,2106.9,2106.0,0.74383436]
[1773551825163,0.81320883,2107.6,2106.0,0.74383436]
[1773551825663,0.81320883,2107.3,2106.0,0.74383436]
[1773551826266,0.81320883,2107.1,2106.0,0.74383436]
[1773551826767,0.81320883,2107.0,2106.0,0.74383436]
[1773551827367,0.81320883,2106.6,2106.0,0.74383436]
[1773551827866,0.81320883,2106.4,2106.0,0.74383436]
[1773551828062,1.806445,2107.3,2106.0,0.74383436]
[1773551828267,0.81320883,2106.7,2106.0,0.74383436]
[1773551828469,0.81320883,2106.9,2106.0,0.74383436]
[1773551828970,0.81320883,2107.5,2106.0,0.74383436]
[1773551829372,0.81320883,2107.2,2106.0,0.74383436]
[1773551829763,2.89633075,2107.1,2106.0,0.74383436]
[1773551829963,0.81320883,2107.1,2106.0,0.74383436]
[1773551831272,0.81320883,2107.0,2106.0,0.74383436]
[1773551832070,0.0053089,2107.6,2106.0,0.74383436]
[1773551832272,0.81320883,2107.4,2106.0,0.74383436]
[1773551832671,0.81320883,2107.1,2106.2,0.74383436]
[1773551833176,0.81320883,2106.7,2106.2,0.74383436]
[1773551834078,0.81320883,2107.5,2106.2,0.74383436]
[1773551834273,0.81320883,2107.0,2106.2,0.74383436]
[1773551834674,2.08312192,2106.8,2106.2,0.74383436]
[1773551834975,0.81320883,2107.5,2106.2,0.74383436]
[1773551835175,0.81320883,2107.1,2106.2,0.74383436]
[1773551836680,0.81320883,2107.0,2106.2,0.74383436]
[1773551837672,2.89633075,2107.0,2106.2,0.74383436]